bitfinex/quotes_BTCUSD_20250422
["timestamp","ask_amount","ask_price","bid_price","bid_amount"]
[1745301081729,0.0478,88228.0,88225.0,0.01133465]
[1745301081868,0.0478,88228.0,88225.0,0.23802563]
[1745301082333,0.0488,88228.0,88225.0,0.23802563]
[1745301082485,0.0478,88228.0,88226.0,0.2266885]
[1745301083287,0.01133465,88225.0,88222.0,0.01133504]
[1745301083501,0.01133491,88223.0,88220.0,0.01248473]
[1745301083711,0.01133491,88223.0,88219.0,0.01133542]
[1745301083895,0.01133491,88223.0,88220.0,0.01133529]
[1745301084713,0.01133491,88223.0,88220.0,0.02386354]
[1745301085128,0.22670082,88222.0,88220.0,0.01252825]
[1745301085532,0.23803586,88222.0,88218.0,0.35133555]
[1745301085908,0.01133516,88221.0,88218.0,0.35133555]
[1745301086107,0.01133516,88221.0,88218.0,0.34]
[1745301087349,0.01133542,88219.0,88218.0,0.01224487]
[1745301087851,0.01133516,88221.0,88217.0,0.01133568]
[1745301088395,0.01133516,88221.0,88218.0,0.01133555]
[1745301088891,0.01133516,88221.0,88218.0,0.02392664]
[1745301089184,0.28303107,88224.0,88220.0,0.01133529]
[1745301090030,0.0468,88228.0,88227.0,0.22668797]
[1745301090408,0.0483,88231.0,88230.0,0.22668026]
[1745301090643,0.0483,88231.0,88228.0,0.01133427]
[1745301091176,0.05963388,88231.0,88228.0,0.01133427]
[1745301091600,0.06063388,88231.0,88228.0,0.01133427]
[1745301091801,0.06163388,88231.0,88228.0,0.01133427]
[1745301092025,0.06063388,88231.0,88228.0,0.01133427]
[1745301092227,0.06163388,88231.0,88228.0,0.01133427]
[1745301095303,0.0503,88231.0,88229.0,0.22668283]
[1745301095531,0.002,88231.0,88229.0,0.22668283]
[1745301096617,0.001,88231.0,88229.0,0.22668283]
[1745301096827,0.002,88231.0,88229.0,0.22668283]
[1745301097315,0.001,88231.0,88229.0,0.22668283]
[1745301097687,0.002,88231.0,88229.0,0.22668283]
[1745301099102,0.002,88231.0,88230.0,0.34]
[1745301100159,0.001,88231.0,88230.0,0.34]
[1745301100369,0.0483,88237.0,88234.0,0.01133349]
[1745301101297,0.28548115,88243.0,88238.0,0.01133298]
[1745301101523,0.28593785,88243.0,88238.0,0.01133298]
[1745301101969,0.001,88237.0,88236.0,0.22666485]
[1745301103549,0.01133285,88239.0,88236.0,0.22666485]
[1745301103759,0.01133285,88239.0,88235.0,0.01133337]
[1745301103905,0.22666528,88236.0,88234.0,0.34]
[1745301104119,0.001,88237.0,88234.0,0.35133349]
[1745301104555,0.002,88237.0,88234.0,0.35133349]
[1745301104764,0.001,88237.0,88234.0,0.35133349]
[1745301104908,0.01133298,88238.0,88234.0,0.35133349]
[1745301105110,0.01233324,88236.0,88232.0,0.22667336]
[1745301105324,0.001,88236.0,88233.0,0.35133362]
[1745301105767,0.001,88236.0,88233.0,0.57800422]
[1745301105931,0.001,88236.0,88233.0,0.35133362]
[1745301106136,0.001,88236.0,88233.0,0.57800454]
[1745301106348,0.01233311,88237.0,88234.0,0.01133349]
[1745301106723,0.01333311,88237.0,88234.0,0.01133349]
[1745301107122,0.001,88236.0,88233.0,0.01133362]
[1745301107326,0.22667256,88233.0,88232.0,0.34]
[1745301108129,0.22667256,88233.0,88218.0,0.01259109]
[1745301108130,0.01133478,88224.0,88221.0,0.01133516]
[1745301108333,0.23802577,88226.0,88221.0,0.01133516]
[1745301108577,0.23802577,88226.0,88221.0,0.35133516]
[1745301109161,0.01133465,88225.0,88221.0,0.35133516]
[1745301110603,0.01133478,88224.0,88221.0,0.35133516]
[1745301114758,0.0475,88225.0,88223.0,0.34]
[1745301114962,0.01133439,88227.0,88223.0,0.35133491]
[1745301115348,0.01133452,88226.0,88223.0,0.35133491]
[1745301115516,0.22669311,88225.0,88223.0,0.34]
[1745301115718,0.01133452,88226.0,88221.0,0.35133516]
[1745301116147,0.01133465,88225.0,88221.0,0.35133516]
[1745301120671,0.01133465,88225.0,88221.0,0.57803678]
[1745301121024,0.01133465,88225.0,88222.0,0.01133504]
[1745301126705,0.01133452,88226.0,88223.0,0.01133491]
[1745301126866,0.01133452,88226.0,88223.0,0.35133491]
[1745301127246,0.01133272,88240.0,88235.0,0.22666583]
[1745301127422,0.05763298,88238.0,88234.0,0.01133349]
[1745301127681,0.0463,88238.0,88236.0,0.22666261]
[1745301127950,0.0485,88242.0,88239.0,0.2379882]
[1745301128774,0.05983247,88242.0,88237.0,0.23799342]
[1745301128976,0.05983247,88242.0,88238.0,0.01133298]
[1745301129119,0.06083247,88242.0,88238.0,0.01133298]
[1745301129319,0.06083247,88242.0,88239.0,0.01133285]
[1745301129510,0.05983247,88242.0,88239.0,0.01133285]
[1745301129706,0.0495,88242.0,88239.0,0.01133285]
[1745301129930,0.0485,88242.0,88239.0,0.01133285]
[1745301131262,0.0495,88242.0,88239.0,0.01133285]
[1745301131470,0.0505,88242.0,88239.0,0.01133285]
[1745301131698,0.0495,88242.0,88239.0,0.01133285]
[1745301131872,0.0505,88242.0,88239.0,0.01133285]
[1745301132092,0.0505,88242.0,88239.0,0.23798838]
[1745301134486,0.0505,88242.0,88241.0,0.226652]
[1745301134696,0.002,88242.0,88241.0,0.226652]
[1745301135318,0.001,88242.0,88241.0,0.226652]
[1745301135736,0.0004567,88243.0,88241.0,0.226652]
[1745301135886,0.001,88242.0,88241.0,0.226652]
[1745301136573,0.002,88242.0,88241.0,0.226652]
[1745301143243,0.002,88242.0,88240.0,0.01133272]
[1745301144262,0.0004567,88243.0,88241.0,0.226652]
[1745301144488,0.002,88242.0,88241.0,0.226652]
[1745301145305,0.0004567,88243.0,88241.0,0.226652]
[1745301145504,0.0014567,88243.0,88241.0,0.226652]
[1745301145681,0.001,88242.0,88241.0,0.226652]
[1745301147008,0.0004567,88243.0,88241.0,0.226652]
[1745301147187,0.0014567,88243.0,88241.0,0.226652]
[1745301147617,0.001,88242.0,88241.0,0.226652]
[1745301147828,0.002,88242.0,88241.0,0.226652]
[1745301148362,0.001,88242.0,88241.0,0.226652]
[1745301148714,0.0024567,88243.0,88241.0,0.226652]
[1745301149956,0.001,88242.0,88241.0,0.226652]
[1745301150811,0.001,88242.0,88241.0,0.01177206]
[1745301151028,0.001,88242.0,88240.0,0.35133272]
[1745301151335,0.001,88242.0,88241.0,0.226652]
[1745301151504,0.002,88242.0,88241.0,0.34267445]
[1745301151710,0.002,88242.0,88241.0,0.34040794]
[1745301152865,0.0004567,88243.0,88241.0,0.34040794]
[1745301153067,0.0004567,88243.0,88242.0,0.45602209]
[1745301153267,0.0004567,88243.0,88242.0,0.45375594]
[1745301154946,0.0004,88249.0,88248.0,0.56663403]
[1745301155140,0.00044565,88249.0,88248.0,0.77630997]
[1745301155500,0.00044565,88249.0,88248.0,0.82170997]
[1745301161979,0.00044565,88249.0,88248.0,0.72578997]
[1745301162175,0.00044565,88249.0,88248.0,0.82166997]
[1745301163381,0.00044565,88249.0,88248.0,0.83621082]
[1745301163798,0.0004228,88252.0,88251.0,0.58116717]
[1745301164039,0.0004228,88252.0,88251.0,0.69492311]
[1745301164202,0.0004228,88252.0,88251.0,0.74392311]
[1745301165227,0.0004228,88252.0,88251.0,1.16062311]
[1745301166207,0.0004228,88252.0,88251.0,1.16162311]
[1745301166538,0.0004228,88252.0,88251.0,1.16062311]
[1745301166750,0.0004228,88252.0,88251.0,1.16362311]
[1745301167358,0.0004228,88252.0,88251.0,1.16262311]
[1745301167560,0.0004228,88252.0,88251.0,1.16462311]
[1745301168736,0.0004228,88252.0,88251.0,1.15008226]
[1745301168936,0.0004228,88252.0,88251.0,0.45775594]
[1745301169144,0.0004228,88252.0,88251.0,0.004]
[1745301169353,0.0498228,88252.0,88251.0,0.344]
[1745301169774,0.0498228,88252.0,88251.0,0.342]
[1745301170011,0.0498228,88252.0,88251.0,0.34]
[1745301171109,0.0498228,88252.0,88250.0,0.22662761]
[1745301171490,0.0498228,88252.0,88251.0,0.34]
[1745301172094,0.0498228,88252.0,88235.0,0.09588]
[1745301172095,0.01133247,88242.0,88235.0,0.09588]
[1745301172298,0.06093272,88240.0,88235.0,0.12513496]
[1745301172531,0.06093272,88240.0,88235.0,0.23804621]
[1745301172728,0.01133298,88238.0,88235.0,4.565e-05]
[1745301172941,0.23799444,88238.0,88235.0,4.565e-05]
[1745301174124,0.22666485,88236.0,88235.0,4.565e-05]
[1745301174389,0.23799444,88238.0,88235.0,4.565e-05]
[1745301174810,0.22666485,88236.0,88235.0,4.565e-05]
[1745301176302,0.22766485,88236.0,88235.0,4.565e-05]
[1745301176665,0.001,88236.0,88235.0,4.565e-05]
[1745301176854,0.002,88236.0,88235.0,4.565e-05]
[1745301180344,0.002,88236.0,88235.0,0.22671307]
[1745301180541,0.002,88236.0,88235.0,0.56671307]
[1745301186264,0.002,88236.0,88235.0,0.68046901]
[1745301195054,0.001,88236.0,88235.0,0.68046901]
[1745301195259,0.0457,88251.0,88250.0,0.22662889]
[1745301196558,0.0467,88251.0,88250.0,0.22662889]
[1745301197865,0.0477,88251.0,88250.0,0.22662889]
[1745301204500,0.22658781,88266.0,88254.0,0.23794765]
[1745301204705,0.22660528,88260.0,88254.0,0.23794765]
[1745301204907,0.22659974,88262.0,88254.0,0.23794765]
[1745301205086,0.01133028,88259.0,88254.0,0.23794765]
[1745301205447,0.01133041,88258.0,88253.0,0.01133105]
[1745301205654,0.01133041,88258.0,88252.0,0.22662316]
[1745301205655,0.01133041,88258.0,88252.0,0.23795434]
[1745301205845,0.01133028,88259.0,88254.0,0.01133093]
[1745301206051,0.01133028,88259.0,88255.0,0.0113308]
[1745301206408,0.01133041,88258.0,88254.0,0.01133093]
[1745301206551,0.01333041,88258.0,88254.0,0.01133093]
[1745301206956,0.01333041,88258.0,88253.0,0.01133105]
[1745301207175,0.01133144,88250.0,88244.0,0.01133221]
[1745301207372,0.01133182,88247.0,88244.0,0.001]
[1745301207662,0.32124173,88245.0,88244.0,0.001]
[1745301208266,0.0946,88245.0,88244.0,0.001]
[1745301208679,0.01133144,88250.0,88244.0,0.001]
[1745301208870,0.0113317,88248.0,88244.0,0.001]
[1745301209057,0.001,88245.0,88244.0,0.001]
[1745301209234,0.002,88245.0,88244.0,0.001]
[1745301209554,0.001,88245.0,88244.0,0.001]
[1745301210265,0.01133182,88247.0,88244.0,0.001]
[1745301211005,0.23796875,88247.0,88244.0,0.001]
[1745301211232,0.01133195,88246.0,88244.0,0.001]
[1745301212728,0.01133157,88249.0,88244.0,0.001]
[1745301212924,0.0113317,88248.0,88244.0,0.001]
[1745301213567,0.001,88246.0,88244.0,0.001]
[1745301213936,0.01133182,88247.0,88244.0,0.001]
[1745301214795,0.23796842,88247.0,88244.0,0.001]
[1745301215179,0.23896842,88247.0,88244.0,0.001]
[1745301215386,0.22664146,88246.0,88244.0,0.001]
[1745301216508,0.22764146,88246.0,88244.0,0.001]
[1745301216965,0.001,88246.0,88245.0,0.22664173]
[1745301217923,0.0458,88251.0,88248.0,0.23796431]
[1745301218850,0.0458,88251.0,88249.0,0.22662914]
[1745301219445,0.0458,88251.0,88247.0,0.22663612]
[1745301219786,0.0468,88251.0,88248.0,0.0113317]
[1745301220079,0.0468,88251.0,88248.0,0.23796354]
[1745301220280,0.0458,88251.0,88248.0,0.23796354]
[1745301220682,0.0478,88251.0,88248.0,0.23796354]
[1745301221101,0.0468,88251.0,88248.0,0.23796354]
[1745301221444,0.0478,88251.0,88248.0,0.23796354]
[1745301222289,0.002,88251.0,88249.0,0.22662944]
[1745301223153,0.001,88251.0,88249.0,0.22662944]
[1745301224434,0.002,88251.0,88249.0,0.22662944]
[1745301243000,0.002,88251.0,88250.0,0.34]
[1745301243940,0.001,88251.0,88250.0,0.34]
[1745301244141,0.01132939,88266.0,88262.0,0.0113299]
[1745301244463,0.01132939,88266.0,88262.0,0.23792589]
[1745301245008,0.01132939,88266.0,88262.0,0.24963574]
[1745301245207,0.01332939,88266.0,88262.0,0.24963574]
[1745301245659,0.01332939,88266.0,88262.0,0.01170985]
[1745301245859,0.01332939,88266.0,88262.0,0.0113299]
[1745301246042,0.01132951,88265.0,88261.0,0.57792854]
[1745301246448,0.01532939,88266.0,88262.0,0.23792556]
[1745301246672,0.01532939,88266.0,88262.0,0.25006908]
[1745301246895,0.01332939,88266.0,88262.0,0.25006908]
[1745301247262,0.002,88265.0,88262.0,0.25006908]
[1745301247812,0.01332939,88266.0,88262.0,0.25006908]
[1745301248170,0.01532939,88266.0,88262.0,0.25006908]
[1745301248584,0.002,88266.0,88265.0,0.34]
[1745301248953,0.0004226,88271.0,88268.0,0.01132913]
[1745301249390,0.0004226,88271.0,88270.0,0.34]
[1745301252279,0.0004226,88271.0,88270.0,0.341]
[1745301252845,0.0004226,88271.0,88270.0,0.45475594]
[1745301261452,0.0004226,88271.0,88270.0,0.341]
[1745301263494,0.0004226,88271.0,88270.0,0.001]
[1745301264093,0.0004226,88271.0,88270.0,0.22757754]
[1745301264301,0.0004226,88271.0,88270.0,0.341]
[1745301265295,0.0454226,88271.0,88270.0,0.001]
[1745301269327,0.011329,88269.0,88265.0,0.01132951]
[1745301270599,0.0454226,88271.0,88267.0,0.2379122]
[1745301270754,0.0004226,88271.0,88268.0,0.01132913]
[1745301271380,0.01175134,88271.0,88267.0,0.2379122]
[1745301271578,0.23832863,88271.0,88267.0,0.01132926]
[1745301271786,0.01132887,88270.0,88267.0,0.01132926]
[1745301271988,0.011329,88269.0,88265.0,0.01132951]
[1745301272348,0.01132887,88270.0,88266.0,0.2379172]
[1745301273628,0.01175134,88271.0,88267.0,0.23791284]
[1745301273762,0.0004226,88271.0,88268.0,0.23791181]
[1745301274315,0.0004226,88271.0,88270.0,0.22657754]
[1745301277529,0.01132887,88270.0,88260.0,0.23793319]
[1745301277735,0.045,88269.0,88265.0,0.01132951]
[1745301277893,0.045,88269.0,88266.0,0.23791553]
[1745301278893,0.045,88269.0,88267.0,0.22658275]
[1745301280813,0.04672316,88268.0,88267.0,0.22658275]
[1745301281033,0.045,88269.0,88267.0,0.22658275]
[1745301283742,0.01175134,88271.0,88267.0,0.23791201]
[1745301284571,0.0004226,88271.0,88268.0,0.23791027]
[1745301285044,0.23832799,88271.0,88267.0,0.01132926]
[1745301285166,0.01175134,88271.0,88267.0,0.23791263]
[1745301285367,0.0004226,88271.0,88269.0,0.22657883]
[1745301285566,0.0004226,88271.0,88269.0,0.34033477]
[1745301285766,0.0004226,88271.0,88269.0,0.22657883]
[1745301288624,0.0004226,88271.0,88269.0,0.3426004]
[1745301288785,0.0004226,88271.0,88269.0,0.34033477]
[1745301291454,0.0004226,88271.0,88270.0,0.55055594]
[1745301291651,0.0004226,88271.0,88270.0,0.56509679]
[1745301292065,0.0004226,88271.0,88270.0,0.4478055]
[1745301293266,1e-08,88272.0,88271.0,0.24111582]
[1745301293464,1e-08,88272.0,88271.0,0.45063176]
[1745301293869,1e-08,88272.0,88271.0,0.35487176]
[1745301294082,1e-08,88272.0,88271.0,0.79063176]
[1745301294638,7.24e-05,88272.0,88271.0,0.79063176]
[1745301302217,7.24e-05,88272.0,88271.0,0.56657497]
[1745301302736,7.24e-05,88272.0,88271.0,0.22657497]
[1745301310766,7.24e-05,88272.0,88270.0,0.001]
[1745301311085,7.24e-05,88272.0,88271.0,0.22657497]
[1745301311519,7.24e-05,88272.0,88270.0,0.001]
[1745301311733,7.24e-05,88272.0,88271.0,0.22657497]
[1745301312243,7.24e-05,88272.0,88270.0,0.001]
[1745301312443,7.24e-05,88272.0,88270.0,0.22757596]
[1745301313234,7.24e-05,88272.0,88270.0,0.001]
[1745301313441,7.24e-05,88272.0,88271.0,0.22657497]
[1745301314150,7.24e-05,88272.0,88270.0,0.22757582]
[1745301316322,7.24e-05,88272.0,88270.0,0.001]
[1745301317199,7.24e-05,88272.0,88270.0,0.22757585]
[1745301320550,7.24e-05,88272.0,88271.0,0.22657497]
[1745301321226,7.24e-05,88272.0,88270.0,0.001]
[1745301321401,7.24e-05,88272.0,88271.0,0.22657497]
[1745301322267,7.24e-05,88272.0,88270.0,0.22757743]
[1745301330869,7.24e-05,88272.0,88270.0,0.22657743]
[1745301334651,0.0479,88271.0,88264.0,0.22659091]
[1745301334879,0.0474,88270.0,88266.0,0.22658781]
[1745301335035,0.0474,88270.0,88267.0,0.23791216]
[1745301335443,0.0474,88270.0,88269.0,0.22658011]
[1745301337051,0.0474,88270.0,88267.0,0.23791216]
[1745301337630,0.01132926,88267.0,88262.0,0.02329284]
[1745301337825,0.22658524,88267.0,88258.0,0.22660802]
[1745301338023,0.01133041,88258.0,88253.0,0.01133105]
[1745301338249,0.23793421,88260.0,88256.0,0.01133067]
[1745301338457,0.27449698,88263.0,88259.0,0.01133028]
[1745301338882,0.0479,88263.0,88261.0,0.22660065]
[1745301339615,0.0479,88263.0,88262.0,0.001]
[1745301339806,0.0479,88263.0,88261.0,0.22660065]
[1745301349463,0.0479,88263.0,88259.0,0.01133028]
[1745301349681,0.01133003,88261.0,88257.0,0.01133054]
[1745301349881,0.01133016,88260.0,88257.0,0.01133054]
[1745301352999,0.01133028,88259.0,88256.0,0.01151425]
[1745301353333,0.01133028,88259.0,88255.0,0.57794527]
[1745301354092,0.01133028,88259.0,88256.0,0.01133067]
[1745301355908,0.01133028,88259.0,88256.0,0.02283666]
[1745301360013,0.23793348,88260.0,88257.0,0.01133054]
[1745301360215,0.01133016,88260.0,88257.0,0.23794111]
[1745301360451,0.23793348,88260.0,88257.0,0.01133054]
[1745301363343,0.23792798,88262.0,88257.0,0.35133054]
[1745301363583,0.01133003,88261.0,88257.0,0.35133054]
[1745301363772,0.0479,88263.0,88261.0,0.34]
[1745301364381,0.22659808,88262.0,88261.0,0.34]
[1745301365125,0.22659808,88262.0,88256.0,0.24944801]
[1745301365126,0.22661092,88257.0,88256.0,0.01150599]
[1745301365338,0.23794579,88256.0,88252.0,0.01133118]
[1745301366019,0.0497,88257.0,88253.0,0.35133105]
[1745301366234,0.0497,88257.0,88256.0,0.34]
[1745301367869,0.0497,88257.0,88255.0,0.34]
[1745301369218,0.0497,88257.0,88254.0,0.35133093]
[1745301370725,0.0497,88257.0,88253.0,0.23794985]
[1745301370944,0.06103054,88257.0,88252.0,0.24965432]
[1745301372488,0.01133067,88256.0,88252.0,0.25065432]
[1745301372681,0.01133067,88256.0,88252.0,0.02403293]
[1745301373057,0.06103054,88257.0,88253.0,0.23795224]
[1745301373849,0.06103054,88257.0,88253.0,0.01133105]
[1745301376067,0.0497,88257.0,88256.0,0.22661348]
[1745301378497,0.0497,88257.0,88254.0,0.23794747]
[1745301381356,0.06103054,88257.0,88254.0,0.23794747]
[1745301382375,0.0497,88257.0,88256.0,0.22661348]
[1745301389168,0.0497,88257.0,88254.0,0.23794747]
[1745301390994,0.0497,88257.0,88256.0,0.22661348]
[1745301391195,0.01133028,88259.0,88255.0,0.3513308]
[1745301391852,0.22657175,88273.0,88263.0,0.2265933]
[1745301391853,0.01132926,88267.0,88263.0,0.2265933]
[1745301392186,0.01132926,88267.0,88263.0,0.23792307]
[1745301392467,0.01132926,88267.0,88263.0,0.01132977]
[1745301392694,0.01132939,88266.0,88262.0,0.0113299]
[1745301392893,0.01132951,88265.0,88262.0,0.0113299]
[1745301393239,0.01132951,88265.0,88260.0,0.23793124]
[1745301394088,0.01132951,88265.0,88261.0,0.22659878]
[1745301394289,0.01132951,88265.0,88262.0,0.0113299]
[1745301395283,0.22660835,88258.0,88250.0,0.14541594]
[1745301395495,0.23794767,88255.0,88251.0,0.34]
[1745301395696,0.22662274,88253.0,88251.0,0.34]
[1745301395948,0.01133093,88254.0,88251.0,0.34]
[1745301396290,0.01133093,88254.0,88251.0,0.35133131]
[1745301396548,0.23794767,88255.0,88251.0,0.35133131]
[1745301396731,0.22662119,88253.0,88252.0,0.00707316]
[1745301396939,0.23794767,88255.0,88252.0,0.00707316]
[1745301397560,0.23794767,88255.0,88253.0,0.00707316]
[1745301397913,0.23794767,88255.0,88254.0,0.00707316]
[1745301398534,0.0113308,88255.0,88254.0,0.00707316]
[1745301398739,0.01133054,88257.0,88254.0,0.00707316]
[1745301399279,0.01057987,88257.0,88255.0,0.00707316]
[1745301399614,0.01057987,88257.0,88256.0,0.00707316]
[1745301401383,0.28423885,88258.0,88256.0,0.00707316]
[1745301402067,0.28423885,88258.0,88257.0,0.00707316]
[1745301404587,0.33053885,88258.0,88257.0,0.00707316]
[1745301405939,0.22662375,88252.0,88251.0,0.01146299]
[1745301406343,0.22663403,88248.0,88246.0,0.34]
[1745301406513,0.05663182,88247.0,88244.0,0.35133221]
[1745301406855,0.0453,88247.0,88244.0,0.57797418]
[1745301407613,0.0453,88247.0,88244.0,0.57897418]
[1745301407819,0.0453,88247.0,88244.0,0.59057017]
[1745301408233,0.0453,88247.0,88246.0,0.34]
[1745301409633,0.01133157,88249.0,88246.0,0.35133195]
[1745301409833,0.01133157,88249.0,88246.0,0.35233195]
[1745301410493,0.01133157,88249.0,88246.0,0.35133195]
[1745301410672,0.01133157,88249.0,88246.0,0.35233195]
[1745301410875,0.01133157,88249.0,88246.0,0.35333195]
[1745301411075,0.01133157,88249.0,88246.0,0.35233195]
[1745301411253,0.01133157,88249.0,88246.0,0.002]
[1745301411653,0.01133157,88249.0,88246.0,0.01333195]
[1745301411999,0.01133157,88249.0,88246.0,0.002]
[1745301412000,0.22663403,88248.0,88246.0,0.002]
[1745301413244,0.01133182,88247.0,88244.0,0.01159599]
[1745301413450,0.01133182,88247.0,88246.0,0.001]
[1745301414183,0.01133182,88247.0,88244.0,0.01177503]
[1745301414380,0.01133182,88247.0,88243.0,0.23797736]
[1745301414553,0.01133182,88247.0,88246.0,0.001]
[1745301415194,0.01133157,88249.0,88246.0,0.001]
[1745301415445,0.23796484,88249.0,88246.0,0.001]
[1745301416371,0.0113317,88248.0,88245.0,0.35133208]
[1745301416693,0.01133157,88249.0,88246.0,0.01233195]
[1745301416937,0.23796474,88249.0,88246.0,0.001]
[1745301417140,0.01133157,88249.0,88246.0,0.001]
[1745301417514,0.01133157,88249.0,88245.0,0.35133208]
[1745301417858,0.01133157,88249.0,88245.0,0.35233208]
[1745301418062,0.01133144,88250.0,88247.0,0.35133182]
[1745301418423,0.27192614,88252.0,88248.0,0.0113317]
[1745301418652,0.23796227,88250.0,88247.0,0.34]
[1745301419085,0.23796227,88250.0,88248.0,0.00707373]
[1745301419267,0.28325732,88252.0,88248.0,0.00707373]
[1745301419471,0.05663118,88252.0,88248.0,0.00707373]
[1745301419649,0.05663118,88252.0,88249.0,0.00707373]
[1745301420273,0.05663118,88252.0,88249.0,0.3584053]
[1745301420681,0.05663118,88252.0,88250.0,0.00707373]
[1745301421207,0.05663118,88252.0,88091.0,0.001]
[1745301421208,0.39701087,88252.0,88251.0,0.00707373]
[1745301421423,0.44591087,88252.0,88251.0,0.00707373]
[1745301422072,0.0478,88245.0,88244.0,0.0114929]
[1745301422275,0.05913208,88245.0,88242.0,0.01133247]
[1745301422567,0.01133298,88238.0,88235.0,0.0008452]
[1745301423325,0.01133298,88238.0,88235.0,0.01246271]
[1745301423586,0.22666228,88237.0,88235.0,0.01246271]
[1745301424348,0.01133298,88238.0,88235.0,0.01246271]
[1745301424552,0.2379927,88238.0,88235.0,0.01246271]
[1745301424760,0.2379927,88238.0,88236.0,0.00707481]
[1745301425307,0.2379927,88238.0,88237.0,0.00707481]
[1745301438318,0.0478,88245.0,88241.0,0.2379827]
[1745301438533,0.01133144,88250.0,88242.0,0.01133247]
[1745301438729,0.048,88253.0,88251.0,0.22662632]
[1745301439133,0.048,88253.0,88252.0,0.00707481]
[1745301440237,0.049,88253.0,88251.0,0.22662632]
[1745301440453,0.048,88253.0,88251.0,0.22662632]
[1745301440887,0.049,88253.0,88251.0,0.22662632]
[1745301441069,0.05,88253.0,88251.0,0.22662632]
[1745301441480,0.049,88253.0,88251.0,0.22662632]
[1745301441807,0.05,88253.0,88251.0,0.22662632]
[1745301442492,0.049,88253.0,88251.0,0.22662632]
[1745301444869,0.01133118,88252.0,88250.0,0.34]
[1745301445049,0.06033105,88253.0,88250.0,0.34]
[1745301445593,0.05933105,88253.0,88250.0,0.35133144]
[1745301446250,0.048,88253.0,88250.0,0.57795856]
[1745301446720,0.048,88253.0,88252.0,0.22662375]
[1745301447772,0.049,88253.0,88252.0,0.22662375]
[1745301448796,0.05,88253.0,88252.0,0.22662375]
[1745301449783,0.002,88253.0,88252.0,0.22662375]
[1745301450204,0.002,88253.0,88252.0,0.23369719]
[1745301450570,0.002,88253.0,88252.0,0.00707344]
[1745301450923,0.002,88253.0,88251.0,0.22662454]
[1745301451867,0.001,88253.0,88252.0,0.54855594]
[1745301452071,0.0004227,88278.0,88271.0,0.56657497]
[1745301452690,0.0004227,88278.0,88271.0,0.34]
[1745301453337,4.565e-05,88272.0,88271.0,0.34]
[1745301457602,4.565e-05,88272.0,88251.0,0.001]
[1745301457603,0.0113299,88262.0,88251.0,0.001]
[1745301458024,0.0113299,88262.0,88256.0,0.23794208]
[1745301458025,0.01133003,88261.0,88256.0,0.23794208]
[1745301458539,0.01133003,88261.0,88257.0,0.23794146]
[1745301458709,0.23791975,88266.0,88260.0,0.22660321]
[1745301458911,0.01132913,88268.0,88263.0,0.01132977]
[1745301459136,0.01132926,88267.0,88262.0,0.23792575]
[1745301459556,0.01132913,88268.0,88264.0,0.01132964]
[1745301463366,0.0130765,88276.0,88271.0,0.34]
[1745301463572,0.0008,88294.0,88277.0,0.56655957]
[1745301464847,0.0008,88294.0,88277.0,0.56755957]
[1745301466674,0.0008,88294.0,88277.0,0.56855957]
[1745301477067,0.00562849,88300.0,88297.0,0.01132541]
[1745301477273,0.00562849,88300.0,88299.0,0.56650313]
[1745301477464,0.00573708,88300.0,88299.0,0.56650313]
[1745301481174,0.00573708,88300.0,88299.0,0.34]
[1745301491324,0.23223764,88300.0,88299.0,0.34]
[1745301491496,0.0475,88299.0,88297.0,0.01143327]
[1745301491698,0.01132579,88294.0,88290.0,0.23286088]
[1745301491899,0.23784391,88294.0,88289.0,0.34]
[1745301492060,0.01132605,88292.0,88289.0,0.34]
[1745301492260,0.23784739,88292.0,88289.0,0.35150205]
[1745301492461,0.01132605,88292.0,88289.0,0.35150205]
[1745301493759,0.01132605,88292.0,88289.0,0.01150205]
[1745301493960,0.01132605,88292.0,88288.0,0.35132656]
[1745301494791,0.22652878,88289.0,88288.0,0.34]
[1745301495089,0.01132631,88290.0,88286.0,0.01132682]
[1745301495845,0.01132631,88290.0,88287.0,0.01132669]
[1745301496056,0.01132631,88290.0,88287.0,0.02277216]
[1745301496739,0.01132631,88290.0,88285.0,0.22653904]
[1745301496908,0.01132618,88291.0,88287.0,0.23786036]
[1745301497532,0.01132566,88295.0,88289.0,0.01132643]
[1745301497761,0.22691445,88304.0,88292.0,0.22652108]
[1745301497964,0.0170621,88300.0,88295.0,0.01132566]
[1745301498239,0.01132528,88298.0,88295.0,0.01132566]
[1745301498448,0.01132528,88298.0,88294.0,0.01132579]
[1745301498656,0.22650826,88297.0,88294.0,0.01132579]
[1745301499721,0.23783367,88297.0,88294.0,0.01132579]
[1745301500178,0.0475,88299.0,88297.0,0.2265066]
[1745301500397,0.0475,88299.0,88296.0,0.01132554]
[1745301501211,0.0485,88299.0,88296.0,0.01132554]
[1745301501632,0.0475,88299.0,88296.0,0.01132554]
[1745301501771,0.0475,88299.0,88296.0,0.23783446]
[1745301501993,0.0485,88299.0,88296.0,0.23783446]
[1745301503441,0.0485,88299.0,88297.0,0.22650605]
[1745301504334,0.0475,88299.0,88297.0,0.22650605]
[1745301504533,0.0485,88299.0,88297.0,0.22650605]
[1745301509060,0.0485,88299.0,88296.0,0.01132554]
[1745301509261,0.05982515,88299.0,88294.0,0.23783885]
[1745301510287,0.28532868,88299.0,88294.0,0.23783885]
[1745301510687,0.01132528,88298.0,88294.0,0.23783885]
[1745301511025,0.01132528,88298.0,88294.0,0.22651306]
[1745301511228,0.01132554,88296.0,88289.0,0.01132643]
[1745301511386,0.23784183,88294.0,88290.0,0.23785189]
[1745301511599,0.23784183,88294.0,88289.0,0.01132643]
[1745301511600,0.01132592,88293.0,88289.0,0.01132643]
[1745301511820,0.01132566,88295.0,88291.0,0.23784942]
[1745301512049,0.01132566,88295.0,88291.0,0.01132618]
[1745301512210,0.01132566,88295.0,88287.0,0.2381406]
[1745301512211,0.22652334,88292.0,88287.0,0.2381406]
[1745301512535,0.01132592,88293.0,88289.0,0.01132643]
[1745301513254,0.01132592,88293.0,88289.0,0.23785459]
[1745301515938,0.01132592,88293.0,88290.0,0.01132631]
[1745301517574,0.22651612,88294.0,88290.0,0.23785092]
[1745301517872,0.01132605,88292.0,88289.0,0.23785381]
[1745301518028,0.01132592,88293.0,88289.0,0.23785381]
[1745301518227,0.23784428,88294.0,88289.0,0.22652844]
[1745301518428,0.01132605,88292.0,88289.0,0.01132643]
[1745301518632,0.01132592,88293.0,88289.0,0.01132643]
[1745301519465,0.01132592,88293.0,88289.0,0.23785307]
[1745301520564,0.01132592,88293.0,88290.0,0.01132631]
[1745301521169,0.01132592,88293.0,88289.0,0.01132643]